Body Name,Body,Service Division,Expense Type,Date Paid,Transaction Ref,Invoice Amount,Supplier Name
South Holland District Council,http://statistics.data.gov.uk/id/local-authority/32UF,AD Housing,Other Miscellaneous Expenses,04/04/2023,30029290,"18,215.64 ",Broadgate Builders (Spalding) Ltd
South Holland District Council,http://statistics.data.gov.uk/id/local-authority/32UF,AD Housing HRA,Agency Staff,04/04/2023,30029086,"1,417.84 ",Integrity Plus Ltd
South Holland District Council,http://statistics.data.gov.uk/id/local-authority/32UF,AD Housing HRA,Buildings Maintenance - Responsive,04/04/2023,30028993,895.00 ,"""personal information redacted"""
South Holland District Council,http://statistics.data.gov.uk/id/local-authority/32UF,AD Housing HRA,Buildings Maintenance - Responsive,04/04/2023,30028998,773.00 ,C G Godfrey Ltd
South Holland District Council,http://statistics.data.gov.uk/id/local-authority/32UF,AD Housing HRA,Buildings Maintenance - Responsive,04/04/2023,30029008,930.75 ,C G Godfrey Ltd
South Holland District Council,http://statistics.data.gov.uk/id/local-authority/32UF,AD Housing HRA,Buildings Maintenance - Responsive,04/04/2023,30029045,436.80 ,C G Godfrey Ltd
South Holland District Council,http://statistics.data.gov.uk/id/local-authority/32UF,AD Strategic Growth and Development - HRA,Agency Staff,04/04/2023,30028928,"2,750.00 ",Park Avenue Recruitment Ltd
South Holland District Council,http://statistics.data.gov.uk/id/local-authority/32UF,AD Wellbeing and Community Leadership,Bed and Breakfast Accommodation (Homelessness Service),04/04/2023,30029258,"1,341.66 ",the Anchor Inn
South Holland District Council,http://statistics.data.gov.uk/id/local-authority/32UF,Asset & Property,Agency Staff,04/04/2023,30029085,642.38 ,Integrity Plus Ltd
South Holland District Council,http://statistics.data.gov.uk/id/local-authority/32UF,Asset & Property,Buildings Maintenance - Responsive,04/04/2023,30028854,"1,492.75 ",National Grid
South Holland District Council,http://statistics.data.gov.uk/id/local-authority/32UF,Asset & Property,Buildings Maintenance - Responsive,04/04/2023,30028939,"1,100.69 ",Glen Farrow UK Ltd
South Holland District Council,http://statistics.data.gov.uk/id/local-authority/32UF,Asset & Property,Buildings Maintenance - Responsive,04/04/2023,30028967,632.50 ,Stanair Industrial Door Services Ltd
South Holland District Council,http://statistics.data.gov.uk/id/local-authority/32UF,Asset & Property,Professional and Contractors Fees,04/04/2023,30028884,"1,015.20 ",Lincolnshire County Council
South Holland District Council,http://statistics.data.gov.uk/id/local-authority/32UF,Economic Development,Professional and Contractors Fees,04/04/2023,30028746,"1,134.42 ",Integrity Plus Ltd
South Holland District Council,http://statistics.data.gov.uk/id/local-authority/32UF,Economic Development,Professional and Contractors Fees,04/04/2023,30029068,919.80 ,Integrity Plus Ltd
South Holland District Council,http://statistics.data.gov.uk/id/local-authority/32UF,Environmental Services,Agency Staff,04/04/2023,30029257,"2,493.31 ",NJW Services
South Holland District Council,http://statistics.data.gov.uk/id/local-authority/32UF,Environmental Services,Professional and Contractors Fees,04/04/2023,30028884,"1,015.20 ",Lincolnshire County Council
South Holland District Council,http://statistics.data.gov.uk/id/local-authority/32UF,Head of ICT and Digital,Computer Software Licence Costs,04/04/2023,30029128,"10,329.09 ",Public Sector Partnership Services Ltd
South Holland District Council,http://statistics.data.gov.uk/id/local-authority/32UF,Head of ICT and Digital,Computer Software Licence Costs,04/04/2023,30029147,"9,598.19 ",Public Sector Partnership Services Ltd
South Holland District Council,http://statistics.data.gov.uk/id/local-authority/32UF,Head of ICT and Digital,Telephones,04/04/2023,30029096,773.20 ,Public Sector Partnership Services Ltd
South Holland District Council,http://statistics.data.gov.uk/id/local-authority/32UF,Public Protection,Other Miscellaneous Expenses,04/04/2023,30029255,"3,762.00 ",Healthguard Limited
South Holland District Council,http://statistics.data.gov.uk/id/local-authority/32UF,AD Housing HRA,Fuel and Oil,06/04/2023,30029260,884.06 ,C H Jones Ltd
South Holland District Council,http://statistics.data.gov.uk/id/local-authority/32UF,AD Housing HRA,Maintenance of Footpaths and Roadways,06/04/2023,30028999,"12,723.25 ",C G Godfrey Ltd
South Holland District Council,http://statistics.data.gov.uk/id/local-authority/32UF,AD Housing HRA,Materials and Consumables,06/04/2023,30029194,559.03 ,EPH Supplies Wholesale Ltd
South Holland District Council,http://statistics.data.gov.uk/id/local-authority/32UF,AD Regulatory,License Fees,06/04/2023,30029384,"2,013.54 ",District Surveyors Association Ltd
South Holland District Council,http://statistics.data.gov.uk/id/local-authority/32UF,AD Strategic Growth and Development - HRA,Agency Staff,06/04/2023,30029390,"2,750.00 ",Park Avenue Recruitment Ltd
South Holland District Council,http://statistics.data.gov.uk/id/local-authority/32UF,AD Wellbeing and Community Leadership,Bed and Breakfast Accommodation (Homelessness Service),06/04/2023,30029347,"1,283.34 ",The Mansion House Hotel
South Holland District Council,http://statistics.data.gov.uk/id/local-authority/32UF,AD Wellbeing and Community Leadership,Bed and Breakfast Accommodation (Homelessness Service),06/04/2023,30029349,"1,283.34 ",The Mansion House Hotel
South Holland District Council,http://statistics.data.gov.uk/id/local-authority/32UF,AD Wellbeing and Community Leadership,Bed and Breakfast Accommodation (Homelessness Service),06/04/2023,30029364,"1,341.66 ",the Anchor Inn
South Holland District Council,http://statistics.data.gov.uk/id/local-authority/32UF,AD Wellbeing and Community Leadership,Bed and Breakfast Accommodation (Homelessness Service),06/04/2023,30029380,"1,108.34 ",the Anchor Inn
South Holland District Council,http://statistics.data.gov.uk/id/local-authority/32UF,AD Wellbeing and Community Leadership,Bed and Breakfast Accommodation (Homelessness Service),06/04/2023,30029381,"1,108.34 ",the Anchor Inn
South Holland District Council,http://statistics.data.gov.uk/id/local-authority/32UF,AD Wellbeing and Community Leadership,Bed and Breakfast Accommodation (Homelessness Service),06/04/2023,30029382,"1,108.34 ",the Anchor Inn
South Holland District Council,http://statistics.data.gov.uk/id/local-authority/32UF,AD Wellbeing and Community Leadership,Bed and Breakfast Accommodation (Homelessness Service),06/04/2023,30029397,"1,170.00 ",Fairfield Guest House
South Holland District Council,http://statistics.data.gov.uk/id/local-authority/32UF,AD Wellbeing and Community Leadership,Bed and Breakfast Accommodation (Homelessness Service),06/04/2023,30029398,"1,710.00 ",Fairfield Guest House
South Holland District Council,http://statistics.data.gov.uk/id/local-authority/32UF,AD Wellbeing and Community Leadership,Bed and Breakfast Accommodation (Homelessness Service),06/04/2023,30029402,"1,470.00 ",The Boat House
South Holland District Council,http://statistics.data.gov.uk/id/local-authority/32UF,AD Wellbeing and Community Leadership,Bed and Breakfast Accommodation (Homelessness Service),06/04/2023,30029403,"1,470.00 ",The Boat House
South Holland District Council,http://statistics.data.gov.uk/id/local-authority/32UF,AD Wellbeing and Community Leadership,Bed and Breakfast Accommodation (Homelessness Service),06/04/2023,30029406,"1,330.00 ",The Boat House
South Holland District Council,http://statistics.data.gov.uk/id/local-authority/32UF,AD Wellbeing and Community Leadership,Bed and Breakfast Accommodation (Homelessness Service),06/04/2023,30029407,"1,330.00 ",The Boat House
South Holland District Council,http://statistics.data.gov.uk/id/local-authority/32UF,AD Wellbeing and Community Leadership,Bed and Breakfast Accommodation (Homelessness Service),06/04/2023,30029416,"1,085.00 ",Anglia Motel
South Holland District Council,http://statistics.data.gov.uk/id/local-authority/32UF,AD Wellbeing and Community Leadership,Staff Training Expenses (Non-Payroll),06/04/2023,30029405,"3,268.12 ",Andy Gale Housing Consultancy
South Holland District Council,http://statistics.data.gov.uk/id/local-authority/32UF,Asset & Property,Fuel and Oil,06/04/2023,30029260,243.18 ,C H Jones Ltd
South Holland District Council,http://statistics.data.gov.uk/id/local-authority/32UF,Building Control,License Fees,06/04/2023,30029384,"2,013.54 ",District Surveyors Association Ltd
South Holland District Council,http://statistics.data.gov.uk/id/local-authority/32UF,Economic Development,Professional and Contractors Fees,06/04/2023,30029393,"1,165.08 ",Integrity Plus Ltd
South Holland District Council,http://statistics.data.gov.uk/id/local-authority/32UF,Environmental Services,Agency Staff,06/04/2023,30029236,"1,249.36 ",GI Group (previously Encore)
South Holland District Council,http://statistics.data.gov.uk/id/local-authority/32UF,Environmental Services,Agency Staff,06/04/2023,30029352,"1,245.84 ",The Best Connection Group Ltd
South Holland District Council,http://statistics.data.gov.uk/id/local-authority/32UF,Environmental Services,Agency Staff,06/04/2023,30029385,"1,095.26 ",GI Group (previously Encore)
South Holland District Council,http://statistics.data.gov.uk/id/local-authority/32UF,Environmental Services,Agency Staff,06/04/2023,30029386,694.95 ,GI Group (previously Encore)
South Holland District Council,http://statistics.data.gov.uk/id/local-authority/32UF,Environmental Services,Fuel and Oil,06/04/2023,30029260,"7,653.52 ",C H Jones Ltd
South Holland District Council,http://statistics.data.gov.uk/id/local-authority/32UF,Planning,Legal Fees Non-Routine,06/04/2023,30029265,"3,500.00 ",CMS (Cameron Mckenna Nabarro Olswang LLP)
South Holland District Council,http://statistics.data.gov.uk/id/local-authority/32UF,Planning,Legal Fees Non-Routine,06/04/2023,30029266,"3,500.00 ",CMS (Cameron Mckenna Nabarro Olswang LLP)
South Holland District Council,http://statistics.data.gov.uk/id/local-authority/32UF,Planning,Legal Fees Non-Routine,06/04/2023,30029267,"7,000.00 ",CMS (Cameron Mckenna Nabarro Olswang LLP)
South Holland District Council,http://statistics.data.gov.uk/id/local-authority/32UF,Public Protection,Legal Fees,06/04/2023,30029244,"5,027.00 ",Maples Solicitors LLP
South Holland District Council,http://statistics.data.gov.uk/id/local-authority/32UF,AD Housing,Other Miscellaneous Expenses,11/04/2023,30029301,"2,595.00 ",South Holland Homes
South Holland District Council,http://statistics.data.gov.uk/id/local-authority/32UF,AD Housing HRA,Buildings Maintenance - Responsive,11/04/2023,30029062,"2,048.89 ",C G Godfrey Ltd
South Holland District Council,http://statistics.data.gov.uk/id/local-authority/32UF,AD Housing HRA,Fuel and Oil,11/04/2023,30029383,381.59 ,C H Jones Ltd
South Holland District Council,http://statistics.data.gov.uk/id/local-authority/32UF,AD Housing HRA,Materials and Consumables,11/04/2023,30029333,586.43 ,Kirby and Wells Ltd T A Kawstore
South Holland District Council,http://statistics.data.gov.uk/id/local-authority/32UF,AD Housing HRA,Sewerage Treatment Works,11/04/2023,30029438,"25,919.13 ",C G Godfrey Ltd
South Holland District Council,http://statistics.data.gov.uk/id/local-authority/32UF,AD Housing HRA,Works to Buildings (Main Contractor),11/04/2023,30029027,"1,704.70 ",C G Godfrey Ltd
South Holland District Council,http://statistics.data.gov.uk/id/local-authority/32UF,AD Housing HRA,Works to Buildings (Main Contractor),11/04/2023,30029268,"14,963.00 ",McIntyre Compliance Services
South Holland District Council,http://statistics.data.gov.uk/id/local-authority/32UF,AD Housing HRA,Works to Buildings (Main Contractor),11/04/2023,30029269,"25,849.68 ",McIntyre Compliance Services
South Holland District Council,http://statistics.data.gov.uk/id/local-authority/32UF,AD Wellbeing and Community Leadership,Bed and Breakfast Accommodation (Homelessness Service),11/04/2023,30029317,"1,320.00 ",The Red Lion Hotel
South Holland District Council,http://statistics.data.gov.uk/id/local-authority/32UF,AD Wellbeing and Community Leadership,Bed and Breakfast Accommodation (Homelessness Service),11/04/2023,30029418,"1,085.00 ",Anglia Motel
South Holland District Council,http://statistics.data.gov.uk/id/local-authority/32UF,AD Wellbeing and Community Leadership,Bed and Breakfast Accommodation (Homelessness Service),11/04/2023,30029420,"1,085.00 ",Anglia Motel
South Holland District Council,http://statistics.data.gov.uk/id/local-authority/32UF,AD Wellbeing and Community Leadership,Bed and Breakfast Accommodation (Homelessness Service),11/04/2023,30029421,"1,085.00 ",Anglia Motel
South Holland District Council,http://statistics.data.gov.uk/id/local-authority/32UF,AD Wellbeing and Community Leadership,Bed and Breakfast Accommodation (Homelessness Service),11/04/2023,30029425,"1,085.00 ",Anglia Motel
South Holland District Council,http://statistics.data.gov.uk/id/local-authority/32UF,AD Wellbeing and Community Leadership,Bed and Breakfast Accommodation (Homelessness Service),11/04/2023,30029426,"1,085.00 ",Anglia Motel
South Holland District Council,http://statistics.data.gov.uk/id/local-authority/32UF,AD Wellbeing and Community Leadership,Bed and Breakfast Accommodation (Homelessness Service),11/04/2023,30029430,"1,085.00 ",Anglia Motel
South Holland District Council,http://statistics.data.gov.uk/id/local-authority/32UF,AD Wellbeing and Community Leadership,Bed and Breakfast Accommodation (Homelessness Service),11/04/2023,30029431,"1,240.00 ",Anglia Motel
South Holland District Council,http://statistics.data.gov.uk/id/local-authority/32UF,AD Wellbeing and Community Leadership,Bed and Breakfast Accommodation (Homelessness Service),11/04/2023,30029432,"1,085.00 ",Anglia Motel
South Holland District Council,http://statistics.data.gov.uk/id/local-authority/32UF,AD Wellbeing and Community Leadership,Bed and Breakfast Accommodation (Homelessness Service),11/04/2023,30029434,"1,085.00 ",Anglia Motel
South Holland District Council,http://statistics.data.gov.uk/id/local-authority/32UF,Asset & Property,Fuel and Oil,11/04/2023,30029383,147.67 ,C H Jones Ltd
South Holland District Council,http://statistics.data.gov.uk/id/local-authority/32UF,Asset & Property,Income Collected on Behalf of External Organisations,11/04/2023,30029413,"7,292.65 ",Broadgate Builders T/A Westlode Car Park
South Holland District Council,http://statistics.data.gov.uk/id/local-authority/32UF,Asset & Property,Works to Buildings (Main Contractor),11/04/2023,30029445,"1,150.00 ",Vere Bros (Contractors) Ltd
South Holland District Council,http://statistics.data.gov.uk/id/local-authority/32UF,Capital - Strategic Finance & Compliance,Works to Buildings (Main Contractor),11/04/2023,30029445,"1,150.00 ",Vere Bros (Contractors) Ltd
South Holland District Council,http://statistics.data.gov.uk/id/local-authority/32UF,Environmental Services,Agency Staff,11/04/2023,30029368,"6,886.63 ",Integrity Plus Ltd
South Holland District Council,http://statistics.data.gov.uk/id/local-authority/32UF,Environmental Services,Fuel and Oil,11/04/2023,30029383,"7,794.58 ",C H Jones Ltd
South Holland District Council,http://statistics.data.gov.uk/id/local-authority/32UF,Environmental Services,Income Collected on Behalf of External Organisations,11/04/2023,30029413,"7,292.65 ",Broadgate Builders T/A Westlode Car Park
South Holland District Council,http://statistics.data.gov.uk/id/local-authority/32UF,Environmental Services,Professional and Contractors Fees,11/04/2023,30028321,"16,816.21 ",Crowland Parish Council
South Holland District Council,http://statistics.data.gov.uk/id/local-authority/32UF,Finance,Agency Staff,11/04/2023,30029429,502.50 ,Pay Stream My Max 3 Limited
South Holland District Council,http://statistics.data.gov.uk/id/local-authority/32UF,Leisure & Culture Communities,Advertising - Events,11/04/2023,30029192,799.00 ,Chilli Media and Publishing Ltd
South Holland District Council,http://statistics.data.gov.uk/id/local-authority/32UF,Leisure & Culture Communities,Payments to Bodies in Respect of Income Collected,11/04/2023,30029436,"7,018.00 ",King of Tunes Ltd
South Holland District Council,http://statistics.data.gov.uk/id/local-authority/32UF,Public Protection,Professional and Contractors Fees,11/04/2023,30029324,900.00 ,Jenviro Ltd
South Holland District Council,http://statistics.data.gov.uk/id/local-authority/32UF,Leisure & Culture Communities,Water and Sewerage Charges,12/04/2023,30029529,"1,655.30 ",Anglian Water
South Holland District Council,http://statistics.data.gov.uk/id/local-authority/32UF,AD Housing HRA,Agency Staff,13/04/2023,30029435,"1,106.27 ","""personal information redacted"""
South Holland District Council,http://statistics.data.gov.uk/id/local-authority/32UF,AD Housing HRA,Buildings Maintenance - Programmed,13/04/2023,30029338,"1,260.00 ",McIntyre Compliance Services
South Holland District Council,http://statistics.data.gov.uk/id/local-authority/32UF,AD Regulatory,Subscriptions to Organisations and Other Bodies,13/04/2023,30029538,857.00 ,BSI Membership
South Holland District Council,http://statistics.data.gov.uk/id/local-authority/32UF,AD Strategic Growth and Development,Performers and Entertainers Fees,13/04/2023,30029424,953.10 ,Little Eskimo Ltd
South Holland District Council,http://statistics.data.gov.uk/id/local-authority/32UF,AD Wellbeing and Community Leadership,Bed and Breakfast Accommodation (Homelessness Service),13/04/2023,30029482,"1,283.34 ",The Mansion House Hotel
South Holland District Council,http://statistics.data.gov.uk/id/local-authority/32UF,AD Wellbeing and Community Leadership,Bed and Breakfast Accommodation (Homelessness Service),13/04/2023,30029485,991.66 ,The Mansion House Hotel
South Holland District Council,http://statistics.data.gov.uk/id/local-authority/32UF,Asset & Property,Agency Staff,13/04/2023,30029363,"3,384.59 ",Integrity Plus Ltd
South Holland District Council,http://statistics.data.gov.uk/id/local-authority/32UF,Asset & Property,Buildings Maintenance - Programmed,13/04/2023,30029469,"2,476.30 ",C G Godfrey Ltd
South Holland District Council,http://statistics.data.gov.uk/id/local-authority/32UF,Asset & Property,Buildings Maintenance - Programmed,13/04/2023,30029470,"2,990.00 ",Spalding Air Conditioning Services Ltd
South Holland District Council,http://statistics.data.gov.uk/id/local-authority/32UF,Asset & Property,Professional and Contractors Fees,13/04/2023,30029237,"2,688.40 ",GBSG Ltd
South Holland District Council,http://statistics.data.gov.uk/id/local-authority/32UF,Asset & Property,Works to Buildings (Main Contractor),13/04/2023,30029446,"2,480.00 ",Vere Bros (Contractors) Ltd
South Holland District Council,http://statistics.data.gov.uk/id/local-authority/32UF,Asset & Property,Works to Buildings (Main Contractor),13/04/2023,30029467,675.00 ,e.on Energy Solutions Ltd (Highway Lighting)
South Holland District Council,http://statistics.data.gov.uk/id/local-authority/32UF,Building Control,Subscriptions to Organisations and Other Bodies,13/04/2023,30029538,857.00 ,BSI Membership
South Holland District Council,http://statistics.data.gov.uk/id/local-authority/32UF,Capital - Strategic Finance & Compliance,Works to Buildings (Main Contractor),13/04/2023,30029446,"2,480.00 ",Vere Bros (Contractors) Ltd
South Holland District Council,http://statistics.data.gov.uk/id/local-authority/32UF,Capital - Strategic Finance & Compliance,Works to Buildings (Main Contractor),13/04/2023,30029467,675.00 ,e.on Energy Solutions Ltd (Highway Lighting)
South Holland District Council,http://statistics.data.gov.uk/id/local-authority/32UF,Democratic Services - Democratic,Furniture and Equipment,13/04/2023,30029479,568.05 ,Sign Design Services Ltd
South Holland District Council,http://statistics.data.gov.uk/id/local-authority/32UF,Economic Development,Grants and Contributions to Outside Bodies - No Service Received,13/04/2023,30029494,500.00 ,Heritage Trust of Lincolnshire Ltd
South Holland District Council,http://statistics.data.gov.uk/id/local-authority/32UF,Environmental Services,Agency Staff,13/04/2023,30029456,861.25 ,Quality Service Recruitment Ltd
South Holland District Council,http://statistics.data.gov.uk/id/local-authority/32UF,Environmental Services,Agency Staff,13/04/2023,30029457,"1,384.54 ",Workchain
South Holland District Council,http://statistics.data.gov.uk/id/local-authority/32UF,Environmental Services,Grounds Maintenance Contract (External),13/04/2023,30029569,820.00 ,Greenscape Tree Safe Ltd
South Holland District Council,http://statistics.data.gov.uk/id/local-authority/32UF,Head of ICT and Digital,PSPS Non-Base Contract Costs,13/04/2023,30029489,"38,000.00 ",Public Sector Partnership Services Ltd
South Holland District Council,http://statistics.data.gov.uk/id/local-authority/32UF,Leisure & Culture Communities,Advertising - Events,13/04/2023,30029193,899.00 ,Chilli Media and Publishing Ltd
South Holland District Council,http://statistics.data.gov.uk/id/local-authority/32UF,Leisure & Culture Communities,Advertising - Events,13/04/2023,30029494,500.00 ,Heritage Trust of Lincolnshire Ltd
South Holland District Council,http://statistics.data.gov.uk/id/local-authority/32UF,Leisure & Culture Communities,Film and Entertainment Costs,13/04/2023,30029401,587.50 ,Cinemanext UK Ltd
South Holland District Council,http://statistics.data.gov.uk/id/local-authority/32UF,Leisure & Culture Communities,Grounds Maintenance Contract (External),13/04/2023,30029569,"1,500.00 ",Greenscape Tree Safe Ltd
South Holland District Council,http://statistics.data.gov.uk/id/local-authority/32UF,AD Housing,Grants and Contributions to Outside Bodies - No Service Received,18/04/2023,30029534,"6,498.78 ",J H Smithson and Son Ltd
South Holland District Council,http://statistics.data.gov.uk/id/local-authority/32UF,AD Housing,Grants and Contributions to Outside Bodies - No Service Received,18/04/2023,30029656,"7,246.86 ",J H Smithson and Son Ltd
South Holland District Council,http://statistics.data.gov.uk/id/local-authority/32UF,AD Housing,Grants and Contributions to Outside Bodies - No Service Received,18/04/2023,30029697,"6,489.32 ",NDJ Ltd T A Belton Construction
South Holland District Council,http://statistics.data.gov.uk/id/local-authority/32UF,AD Housing HRA,Agency Staff,18/04/2023,30029755,"1,149.60 ",Integrity Plus Ltd
South Holland District Council,http://statistics.data.gov.uk/id/local-authority/32UF,AD Housing HRA,Buildings Maintenance - Responsive,18/04/2023,30029018,829.00 ,C G Godfrey Ltd
South Holland District Council,http://statistics.data.gov.uk/id/local-authority/32UF,AD Housing HRA,Buildings Maintenance - Responsive,18/04/2023,30029378,585.00 ,Boors Ltd
South Holland District Council,http://statistics.data.gov.uk/id/local-authority/32UF,AD Housing HRA,Buildings Maintenance - Responsive,18/04/2023,30029396,585.00 ,Boors Ltd
South Holland District Council,http://statistics.data.gov.uk/id/local-authority/32UF,AD Housing HRA,Buildings Maintenance - Responsive,18/04/2023,30029408,585.00 ,Boors Ltd
South Holland District Council,http://statistics.data.gov.uk/id/local-authority/32UF,AD Housing HRA,Computer Software Licence Costs,18/04/2023,30030106,864.00 ,Teletrac Navman (UK) Ltd
South Holland District Council,http://statistics.data.gov.uk/id/local-authority/32UF,AD Housing HRA,Fuel and Oil,18/04/2023,30029576,573.15 ,C H Jones Ltd
South Holland District Council,http://statistics.data.gov.uk/id/local-authority/32UF,AD Housing HRA,Materials and Consumables,18/04/2023,30029510,453.16 ,EPH Supplies Wholesale Ltd
South Holland District Council,http://statistics.data.gov.uk/id/local-authority/32UF,AD Housing HRA,Materials and Consumables,18/04/2023,30029607,"1,679.02 ",Branch Bros Ltd
South Holland District Council,http://statistics.data.gov.uk/id/local-authority/32UF,AD Housing HRA,Professional and Contractors Fees,18/04/2023,30029542,878.00 ,Lakeside Water & Building Services Ltd
South Holland District Council,http://statistics.data.gov.uk/id/local-authority/32UF,AD Housing HRA,Professional and Contractors Fees,18/04/2023,30029543,878.00 ,Lakeside Water & Building Services Ltd
South Holland District Council,http://statistics.data.gov.uk/id/local-authority/32UF,AD Housing HRA,Professional and Contractors Fees,18/04/2023,30029544,878.00 ,Lakeside Water & Building Services Ltd
South Holland District Council,http://statistics.data.gov.uk/id/local-authority/32UF,AD Housing HRA,Professional and Contractors Fees,18/04/2023,30029545,878.00 ,Lakeside Water & Building Services Ltd
South Holland District Council,http://statistics.data.gov.uk/id/local-authority/32UF,AD Housing HRA,Professional and Contractors Fees,18/04/2023,30029546,878.00 ,Lakeside Water & Building Services Ltd
South Holland District Council,http://statistics.data.gov.uk/id/local-authority/32UF,AD Housing HRA,Professional and Contractors Fees,18/04/2023,30029547,878.00 ,Lakeside Water & Building Services Ltd
South Holland District Council,http://statistics.data.gov.uk/id/local-authority/32UF,AD Housing HRA,Professional and Contractors Fees,18/04/2023,30029548,877.00 ,Lakeside Water & Building Services Ltd
South Holland District Council,http://statistics.data.gov.uk/id/local-authority/32UF,AD Housing HRA,Professional and Contractors Fees,18/04/2023,30029549,878.00 ,Lakeside Water & Building Services Ltd
South Holland District Council,http://statistics.data.gov.uk/id/local-authority/32UF,AD Housing HRA,Professional and Contractors Fees,18/04/2023,30029550,878.00 ,Lakeside Water & Building Services Ltd
South Holland District Council,http://statistics.data.gov.uk/id/local-authority/32UF,AD Housing HRA,Purchase of Hardware,18/04/2023,30029664,"30,894.92 ",Softcat Plc
South Holland District Council,http://statistics.data.gov.uk/id/local-authority/32UF,AD Housing HRA,Subscriptions to Organisations and Other Bodies,18/04/2023,30029650,985.00 ,TSA Ltd
South Holland District Council,http://statistics.data.gov.uk/id/local-authority/32UF,AD Housing HRA,Void Repairs,18/04/2023,30029377,"15,232.00 ",Boors Ltd
South Holland District Council,http://statistics.data.gov.uk/id/local-authority/32UF,AD Housing HRA,Void Repairs,18/04/2023,30029468,875.00 ,"""personal information redacted"""
South Holland District Council,http://statistics.data.gov.uk/id/local-authority/32UF,AD Housing HRA,Works to Buildings (Main Contractor),18/04/2023,30029016,"4,487.00 ",C G Godfrey Ltd
South Holland District Council,http://statistics.data.gov.uk/id/local-authority/32UF,AD Housing HRA,Works to Buildings (Main Contractor),18/04/2023,30029687,"23,743.71 ","""personal information redacted"""
South Holland District Council,http://statistics.data.gov.uk/id/local-authority/32UF,AD Regulatory,Staff Recruitment,18/04/2023,30029725,562.50 ,We Are Sunday Ltd
South Holland District Council,http://statistics.data.gov.uk/id/local-authority/32UF,AD Wellbeing and Community Leadership,Bed and Breakfast Accommodation (Homelessness Service),18/04/2023,30029666,"1,085.00 ",Anglia Motel
South Holland District Council,http://statistics.data.gov.uk/id/local-authority/32UF,AD Wellbeing and Community Leadership,Bed and Breakfast Accommodation (Homelessness Service),18/04/2023,30029668,"1,085.00 ",Anglia Motel
South Holland District Council,http://statistics.data.gov.uk/id/local-authority/32UF,AD Wellbeing and Community Leadership,Bed and Breakfast Accommodation (Homelessness Service),18/04/2023,30029669,"1,085.00 ",Anglia Motel
South Holland District Council,http://statistics.data.gov.uk/id/local-authority/32UF,AD Wellbeing and Community Leadership,Bed and Breakfast Accommodation (Homelessness Service),18/04/2023,30029670,"1,085.00 ",Anglia Motel
South Holland District Council,http://statistics.data.gov.uk/id/local-authority/32UF,AD Wellbeing and Community Leadership,Bed and Breakfast Accommodation (Homelessness Service),18/04/2023,30029672,"1,000.00 ",Anglia Motel
South Holland District Council,http://statistics.data.gov.uk/id/local-authority/32UF,AD Wellbeing and Community Leadership,Bed and Breakfast Accommodation (Homelessness Service),18/04/2023,30029676,"1,085.00 ",Anglia Motel
South Holland District Council,http://statistics.data.gov.uk/id/local-authority/32UF,AD Wellbeing and Community Leadership,Bed and Breakfast Accommodation (Homelessness Service),18/04/2023,30029677,"1,085.00 ",Anglia Motel
South Holland District Council,http://statistics.data.gov.uk/id/local-authority/32UF,AD Wellbeing and Community Leadership,Bed and Breakfast Accommodation (Homelessness Service),18/04/2023,30029678,"1,085.00 ",Anglia Motel
South Holland District Council,http://statistics.data.gov.uk/id/local-authority/32UF,AD Wellbeing and Community Leadership,Bed and Breakfast Accommodation (Homelessness Service),18/04/2023,30029679,"1,085.00 ",Anglia Motel
South Holland District Council,http://statistics.data.gov.uk/id/local-authority/32UF,AD Wellbeing and Community Leadership,Bed and Breakfast Accommodation (Homelessness Service),18/04/2023,30029680,"1,085.00 ",Anglia Motel
South Holland District Council,http://statistics.data.gov.uk/id/local-authority/32UF,AD Wellbeing and Community Leadership,Bed and Breakfast Accommodation (Homelessness Service),18/04/2023,30029682,"1,085.00 ",Anglia Motel
South Holland District Council,http://statistics.data.gov.uk/id/local-authority/32UF,AD Wellbeing and Community Leadership,Bed and Breakfast Accommodation (Homelessness Service),18/04/2023,30029721,"1,050.00 ",The Mansion House Hotel
South Holland District Council,http://statistics.data.gov.uk/id/local-authority/32UF,AD Wellbeing and Community Leadership,Bed and Breakfast Accommodation (Homelessness Service),18/04/2023,30029722,991.66 ,The Mansion House Hotel
South Holland District Council,http://statistics.data.gov.uk/id/local-authority/32UF,AD Wellbeing and Community Leadership,Bed and Breakfast Accommodation (Homelessness Service),18/04/2023,30029736,"1,330.00 ",Fairfield Guest House
South Holland District Council,http://statistics.data.gov.uk/id/local-authority/32UF,AD Wellbeing and Community Leadership,Grants and Contributions to Outside Bodies - No Service Received,18/04/2023,30029534,"12,997.56 ",J H Smithson and Son Ltd
South Holland District Council,http://statistics.data.gov.uk/id/local-authority/32UF,AD Wellbeing and Community Leadership,Grants and Contributions to Outside Bodies - No Service Received,18/04/2023,30029656,"14,493.72 ",J H Smithson and Son Ltd
South Holland District Council,http://statistics.data.gov.uk/id/local-authority/32UF,AD Wellbeing and Community Leadership,Grants and Contributions to Outside Bodies - No Service Received,18/04/2023,30029697,"12,978.64 ",NDJ Ltd T A Belton Construction
South Holland District Council,http://statistics.data.gov.uk/id/local-authority/32UF,Asset & Property,Fuel and Oil,18/04/2023,30029576,133.92 ,C H Jones Ltd
South Holland District Council,http://statistics.data.gov.uk/id/local-authority/32UF,Asset & Property,PCN Income,18/04/2023,30029533,"3,253.89 ",Broadgate Builders T/A Westlode Car Park
South Holland District Council,http://statistics.data.gov.uk/id/local-authority/32UF,Asset & Property,Professional and Contractors Fees,18/04/2023,30029686,"1,441.67 ",Lincolnshire County Council
South Holland District Council,http://statistics.data.gov.uk/id/local-authority/32UF,Asset & Property,Professional and Contractors Fees,18/04/2023,30029688,"1,060.80 ",Lincolnshire County Council
South Holland District Council,http://statistics.data.gov.uk/id/local-authority/32UF,Asset & Property,Professional and Contractors Fees,18/04/2023,30029731,"15,376.80 ",Lincolnshire County Council
South Holland District Council,http://statistics.data.gov.uk/id/local-authority/32UF,Asset & Property,Rent Payments,18/04/2023,30029202,"1,333.33 ",Station Storage Lincs Ltd
South Holland District Council,http://statistics.data.gov.uk/id/local-authority/32UF,Asset & Property,Tyres,18/04/2023,30029621,84.00 ,Vaculug Technologies Ltd
South Holland District Council,http://statistics.data.gov.uk/id/local-authority/32UF,Building Control,Staff Recruitment,18/04/2023,30029725,562.50 ,We Are Sunday Ltd
South Holland District Council,http://statistics.data.gov.uk/id/local-authority/32UF,Democratic Services - Democratic,Other Miscellaneous Expenses,18/04/2023,30029652,750.00 ,Pinchbeck Carnival Association
South Holland District Council,http://statistics.data.gov.uk/id/local-authority/32UF,Economic Development,Professional and Contractors Fees,18/04/2023,30029756,919.80 ,Integrity Plus Ltd
South Holland District Council,http://statistics.data.gov.uk/id/local-authority/32UF,Environmental Services,Agency Staff,18/04/2023,30029620,"1,218.99 ",The Best Connection Group Ltd
South Holland District Council,http://statistics.data.gov.uk/id/local-authority/32UF,Environmental Services,Agency Staff,18/04/2023,30029689,"1,324.60 ",The Best Connection Group Ltd
South Holland District Council,http://statistics.data.gov.uk/id/local-authority/32UF,Environmental Services,Agency Staff,18/04/2023,30029690,"1,192.14 ",The Best Connection Group Ltd
South Holland District Council,http://statistics.data.gov.uk/id/local-authority/32UF,Environmental Services,Agency Staff,18/04/2023,30029691,814.90 ,The Best Connection Group Ltd
South Holland District Council,http://statistics.data.gov.uk/id/local-authority/32UF,Environmental Services,Agency Staff,18/04/2023,30029692,"1,059.68 ",The Best Connection Group Ltd
South Holland District Council,http://statistics.data.gov.uk/id/local-authority/32UF,Environmental Services,Agency Staff,18/04/2023,30029693,"1,351.45 ",The Best Connection Group Ltd
South Holland District Council,http://statistics.data.gov.uk/id/local-authority/32UF,Environmental Services,Agency Staff,18/04/2023,30029694,"1,269.08 ",The Best Connection Group Ltd
South Holland District Council,http://statistics.data.gov.uk/id/local-authority/32UF,Environmental Services,Agency Staff,18/04/2023,30029754,"6,107.79 ",Integrity Plus Ltd
South Holland District Council,http://statistics.data.gov.uk/id/local-authority/32UF,Environmental Services,Fuel and Oil,18/04/2023,30029576,"7,506.27 ",C H Jones Ltd
South Holland District Council,http://statistics.data.gov.uk/id/local-authority/32UF,Environmental Services,PCN Income,18/04/2023,30029533,"3,253.89 ",Broadgate Builders T/A Westlode Car Park
South Holland District Council,http://statistics.data.gov.uk/id/local-authority/32UF,Environmental Services,Professional and Contractors Fees,18/04/2023,30029686,"1,441.67 ",Lincolnshire County Council
South Holland District Council,http://statistics.data.gov.uk/id/local-authority/32UF,Environmental Services,Professional and Contractors Fees,18/04/2023,30029688,"1,060.80 ",Lincolnshire County Council
South Holland District Council,http://statistics.data.gov.uk/id/local-authority/32UF,Environmental Services,Professional and Contractors Fees,18/04/2023,30029731,"15,376.80 ",Lincolnshire County Council
South Holland District Council,http://statistics.data.gov.uk/id/local-authority/32UF,Environmental Services,Tyres,18/04/2023,30029621,"5,326.95 ",Vaculug Technologies Ltd
South Holland District Council,http://statistics.data.gov.uk/id/local-authority/32UF,Finance,Agency Staff,18/04/2023,30029729,670.00 ,Pay Stream My Max 3 Limited
South Holland District Council,http://statistics.data.gov.uk/id/local-authority/32UF,Finance,Shared Management,18/04/2023,30029228,718.55 ,Breckland Council
South Holland District Council,http://statistics.data.gov.uk/id/local-authority/32UF,Head of ICT and Digital,Computer Software Licence Costs,18/04/2023,30029487,569.72 ,Public Sector Partnership Services Ltd
South Holland District Council,http://statistics.data.gov.uk/id/local-authority/32UF,Head of Revenues and Benefits,Subscriptions to Organisations and Other Bodies,18/04/2023,30028917,"2,535.00 ",Cabinet Office
South Holland District Council,http://statistics.data.gov.uk/id/local-authority/32UF,Leisure & Culture Communities,Advertising - Events,18/04/2023,30029355,450.00 ,At Graphics Ltd
South Holland District Council,http://statistics.data.gov.uk/id/local-authority/32UF,Leisure & Culture Communities,Film and Entertainment Costs,18/04/2023,30029727,"3,712.72 ",Mei Theatrical LTD
South Holland District Council,http://statistics.data.gov.uk/id/local-authority/32UF,AD Housing,Grants and Contributions to Outside Bodies - No Service Received,20/04/2023,30029871,"16,215.00 ",Landmark Ltd t/a Carebase
South Holland District Council,http://statistics.data.gov.uk/id/local-authority/32UF,AD Housing HRA,Buildings Maintenance - Responsive,20/04/2023,30029778,429.46 ,andrew Hicks Ltd
South Holland District Council,http://statistics.data.gov.uk/id/local-authority/32UF,AD Housing HRA,Furniture and Equipment,20/04/2023,30029895,583.53 ,Saint Gobain Building Distribution
South Holland District Council,http://statistics.data.gov.uk/id/local-authority/32UF,AD Housing HRA,Furniture and Equipment,20/04/2023,30029896,641.87 ,Saint Gobain Building Distribution
South Holland District Council,http://statistics.data.gov.uk/id/local-authority/32UF,AD Housing HRA,Furniture and Equipment,20/04/2023,30029897,835.38 ,Saint Gobain Building Distribution
South Holland District Council,http://statistics.data.gov.uk/id/local-authority/32UF,AD Housing HRA,Gas Servicing,20/04/2023,30027834,"19,517.83 ",Aaron Services Ltd
South Holland District Council,http://statistics.data.gov.uk/id/local-authority/32UF,AD Housing HRA,Materials and Consumables,20/04/2023,30029742,562.94 ,EPH Supplies Wholesale Ltd
South Holland District Council,http://statistics.data.gov.uk/id/local-authority/32UF,AD Housing HRA,Materials and Consumables,20/04/2023,30029899,"4,877.66 ",Gibbs and Dandy
South Holland District Council,http://statistics.data.gov.uk/id/local-authority/32UF,AD Housing HRA,Works to Buildings (Main Contractor),20/04/2023,30029799,"41,654.33 ",D Brown Building Contractors Ltd
South Holland District Council,http://statistics.data.gov.uk/id/local-authority/32UF,AD Housing HRA,Works to Buildings (Main Contractor),20/04/2023,30029800,"5,421.18 ",D Brown Building Contractors Ltd
South Holland District Council,http://statistics.data.gov.uk/id/local-authority/32UF,AD Housing HRA,Works to Buildings (Main Contractor),20/04/2023,30029801,"23,901.12 ",D Brown Building Contractors Ltd
South Holland District Council,http://statistics.data.gov.uk/id/local-authority/32UF,AD Housing HRA,Works to Buildings (Main Contractor),20/04/2023,30029802,"12,636.63 ",D Brown Building Contractors Ltd
South Holland District Council,http://statistics.data.gov.uk/id/local-authority/32UF,AD Housing HRA,Works to Buildings (Main Contractor),20/04/2023,30029828,"8,138.68 ",D Brown Building Contractors Ltd
South Holland District Council,http://statistics.data.gov.uk/id/local-authority/32UF,AD Neighbourhoods,Purchase of Vehicles,20/04/2023,30028965,"169,175.00 ",Dennis Eagle
South Holland District Council,http://statistics.data.gov.uk/id/local-authority/32UF,AD Strategic Growth and Development,Materials and Consumables,20/04/2023,30029794,"10,000.00 ",University of Lincoln
South Holland District Council,http://statistics.data.gov.uk/id/local-authority/32UF,AD Strategic Growth and Development,Performers and Entertainers Fees,20/04/2023,30029090,"1,900.00 ",Scanlite Visual Communications Ltd
South Holland District Council,http://statistics.data.gov.uk/id/local-authority/32UF,AD Strategic Growth and Development - HRA,Agency Staff,20/04/2023,30029717,"2,200.00 ",Park Avenue Recruitment Ltd
South Holland District Council,http://statistics.data.gov.uk/id/local-authority/32UF,AD Wellbeing and Community Leadership,Bed and Breakfast Accommodation (Homelessness Service),20/04/2023,30029891,"1,283.34 ",The Mansion House Hotel
South Holland District Council,http://statistics.data.gov.uk/id/local-authority/32UF,AD Wellbeing and Community Leadership,Bed and Breakfast Accommodation (Homelessness Service),20/04/2023,30029892,"1,283.34 ",The Mansion House Hotel
South Holland District Council,http://statistics.data.gov.uk/id/local-authority/32UF,AD Wellbeing and Community Leadership,Grants and Contributions to Outside Bodies - No Service Received,20/04/2023,30029871,"32,430.00 ",Landmark Ltd t/a Carebase
South Holland District Council,http://statistics.data.gov.uk/id/local-authority/32UF,Asset & Property,Agency Staff,20/04/2023,30029757,"2,688.04 ",Integrity Plus Ltd
South Holland District Council,http://statistics.data.gov.uk/id/local-authority/32UF,Asset & Property,Buildings Maintenance - Programmed,20/04/2023,30029509,"1,200.00 ",Vere Bros (Contractors) Ltd
South Holland District Council,http://statistics.data.gov.uk/id/local-authority/32UF,Asset & Property,Buildings Maintenance - Programmed,20/04/2023,30029578,"2,902.79 ",GBSG Ltd
South Holland District Council,http://statistics.data.gov.uk/id/local-authority/32UF,Asset & Property,Buildings Maintenance - Programmed,20/04/2023,30029581,462.41 ,Glen Farrow UK Ltd
South Holland District Council,http://statistics.data.gov.uk/id/local-authority/32UF,Environmental Services,Agency Staff,20/04/2023,30029639,703.89 ,GI Group (previously Encore)
South Holland District Council,http://statistics.data.gov.uk/id/local-authority/32UF,Finance,Public Sector Partnership Services,20/04/2023,30029746,"282,653.16 ",Public Sector Partnership Services Ltd
South Holland District Council,http://statistics.data.gov.uk/id/local-authority/32UF,Health & Communities,Other Miscellaneous Expenses,20/04/2023,30029825,736.25 ,Tears Of Sutton Bridge Ltd
South Holland District Council,http://statistics.data.gov.uk/id/local-authority/32UF,Health & Communities,Other Miscellaneous Expenses,20/04/2023,30029827,680.00 ,Tears Of Sutton Bridge Ltd
South Holland District Council,http://statistics.data.gov.uk/id/local-authority/32UF,Leisure & Culture Communities,Grants and Contributions to Outside Bodies - No Service Received,20/04/2023,30029618,600.00 ,Scarlet Community Music Club
South Holland District Council,http://statistics.data.gov.uk/id/local-authority/32UF,Leisure & Culture Communities,Performers and Entertainers Fees,20/04/2023,30029815,"4,500.00 ",Sally Morgan Entertainments
South Holland District Council,http://statistics.data.gov.uk/id/local-authority/32UF,AD Housing,Bed and Breakfast Accommodation (Homelessness Service),25/04/2023,30029427,542.50 ,Anglia Motel
South Holland District Council,http://statistics.data.gov.uk/id/local-authority/32UF,AD Housing,Grants and Contributions to Outside Bodies - No Service Received,25/04/2023,30030024,800.00 ,Martin Greaves Building Contractor
South Holland District Council,http://statistics.data.gov.uk/id/local-authority/32UF,AD Housing,Grants and Contributions to Outside Bodies - No Service Received,25/04/2023,30030030,"9,672.56 ",Martin Greaves Building Contractor
South Holland District Council,http://statistics.data.gov.uk/id/local-authority/32UF,AD Housing HRA,Agency Staff,25/04/2023,30029745,"1,083.32 ","""personal information redacted"""
South Holland District Council,http://statistics.data.gov.uk/id/local-authority/32UF,AD Housing HRA,Agency Staff,25/04/2023,30029849,894.00 ,"""personal information redacted"""
South Holland District Council,http://statistics.data.gov.uk/id/local-authority/32UF,AD Housing HRA,Agency Staff,25/04/2023,30029882,"1,134.62 ","""personal information redacted"""
South Holland District Council,http://statistics.data.gov.uk/id/local-authority/32UF,AD Housing HRA,Buildings Maintenance - Programmed,25/04/2023,30029907,"1,105.00 ","""personal information redacted"""
South Holland District Council,http://statistics.data.gov.uk/id/local-authority/32UF,AD Housing HRA,Buildings Maintenance - Responsive,25/04/2023,30029250,515.00 ,Closomat Ltd
South Holland District Council,http://statistics.data.gov.uk/id/local-authority/32UF,AD Housing HRA,Cleaning Contract,25/04/2023,30029832,735.00 ,aAFD services Ltd
South Holland District Council,http://statistics.data.gov.uk/id/local-authority/32UF,AD Housing HRA,Cleaning Contract,25/04/2023,30029990,851.43 ,Veolia Es UK Ltd
South Holland District Council,http://statistics.data.gov.uk/id/local-authority/32UF,AD Housing HRA,Furniture and Equipment,25/04/2023,30029606,546.69 ,Veolia Es UK Ltd
South Holland District Council,http://statistics.data.gov.uk/id/local-authority/32UF,AD Housing HRA,Legal Fees,25/04/2023,30029344,"2,490.50 ",Bevan Brittan
South Holland District Council,http://statistics.data.gov.uk/id/local-authority/32UF,AD Housing HRA,Materials and Consumables,25/04/2023,30029877,"1,198.71 ",EPH Supplies Wholesale Ltd
South Holland District Council,http://statistics.data.gov.uk/id/local-authority/32UF,AD Housing HRA,Professional and Contractors Fees,25/04/2023,30029325,928.00 ,Language Line Ltd
South Holland District Council,http://statistics.data.gov.uk/id/local-authority/32UF,AD Housing HRA,Professional and Contractors Fees,25/04/2023,30029360,"1,051.79 ",Morgan Lambert Ltd 2018
South Holland District Council,http://statistics.data.gov.uk/id/local-authority/32UF,AD Housing HRA,Professional and Contractors Fees,25/04/2023,30029374,570.00 ,Environtec Limited
South Holland District Council,http://statistics.data.gov.uk/id/local-authority/32UF,AD Housing HRA,Professional and Contractors Fees,25/04/2023,30029829,475.00 ,Eve Alexander Ltd
South Holland District Council,http://statistics.data.gov.uk/id/local-authority/32UF,AD Housing HRA,Purchase of Hardware,25/04/2023,30029321,792.08 ,Matrix Network Services Ltd
South Holland District Council,http://statistics.data.gov.uk/id/local-authority/32UF,AD Housing HRA,Purchase of Hardware,25/04/2023,30029326,"9,635.91 ",Softcat Plc
South Holland District Council,http://statistics.data.gov.uk/id/local-authority/32UF,AD Housing HRA,Roof Repairs,25/04/2023,30029137,"7,451.95 ",Hodgson Sayers Ltd
South Holland District Council,http://statistics.data.gov.uk/id/local-authority/32UF,AD Housing HRA,Sewerage Treatment Works,25/04/2023,30029623,"8,981.00 ",Environment Agency
South Holland District Council,http://statistics.data.gov.uk/id/local-authority/32UF,AD Housing HRA,Sewerage Treatment Works,25/04/2023,30029624,"1,580.00 ",Environment Agency
South Holland District Council,http://statistics.data.gov.uk/id/local-authority/32UF,AD Housing HRA,Sewerage Treatment Works,25/04/2023,30029662,"26,390.00 ",Environment Agency
South Holland District Council,http://statistics.data.gov.uk/id/local-authority/32UF,AD Housing HRA,Staff Training Expenses (Non-Payroll),25/04/2023,30030048,"2,685.00 ",Ocean Media Group Ltd
South Holland District Council,http://statistics.data.gov.uk/id/local-authority/32UF,AD Housing HRA,Works to Buildings (Main Contractor),25/04/2023,30029803,"105,572.87 ",D Brown Building Contractors Ltd
South Holland District Council,http://statistics.data.gov.uk/id/local-authority/32UF,AD Housing HRA,Works to Buildings (Main Contractor),25/04/2023,30030007,"6,577.07 ",Hodgson Sayers Ltd
South Holland District Council,http://statistics.data.gov.uk/id/local-authority/32UF,AD Housing HRA,Works to Buildings (Main Contractor),25/04/2023,30030008,"85,707.43 ",Hodgson Sayers Ltd
South Holland District Council,http://statistics.data.gov.uk/id/local-authority/32UF,AD Housing HRA,Works to Buildings (Main Contractor),25/04/2023,30030037,"60,766.67 ",Westone Housing Ltd
South Holland District Council,http://statistics.data.gov.uk/id/local-authority/32UF,AD Housing HRA,Works to Buildings (Main Contractor),25/04/2023,30030056,"8,447.00 ",JPG Builders
South Holland District Council,http://statistics.data.gov.uk/id/local-authority/32UF,AD Leisure and Culture,Subscriptions to Organisations and Other Bodies,25/04/2023,30029626,768.00 ,NABMA
South Holland District Council,http://statistics.data.gov.uk/id/local-authority/32UF,AD Neighbourhoods,Purchase of Vehicles,25/04/2023,30029860,"169,175.00 ",Dennis Eagle
South Holland District Council,http://statistics.data.gov.uk/id/local-authority/32UF,AD Neighbourhoods,Purchase of Vehicles,25/04/2023,30029861,"169,175.00 ",Dennis Eagle
South Holland District Council,http://statistics.data.gov.uk/id/local-authority/32UF,AD Regulatory,Professional and Contractors Fees,25/04/2023,30029893,420.00 ,Shields Wilson Ltd
South Holland District Council,http://statistics.data.gov.uk/id/local-authority/32UF,AD Regulatory,Staff Recruitment,25/04/2023,30029927,598.50 ,Redactive Publishing Ltd
South Holland District Council,http://statistics.data.gov.uk/id/local-authority/32UF,AD Strategic Growth and Development - HRA,Agency Staff,25/04/2023,30029852,"2,200.00 ",Park Avenue Recruitment Ltd
South Holland District Council,http://statistics.data.gov.uk/id/local-authority/32UF,AD Wellbeing and Community Leadership,Bed and Breakfast Accommodation (Homelessness Service),25/04/2023,30029910,"1,000.00 ",Anglia Motel
South Holland District Council,http://statistics.data.gov.uk/id/local-authority/32UF,AD Wellbeing and Community Leadership,Bed and Breakfast Accommodation (Homelessness Service),25/04/2023,30029911,"1,085.00 ",Anglia Motel
South Holland District Council,http://statistics.data.gov.uk/id/local-authority/32UF,AD Wellbeing and Community Leadership,Bed and Breakfast Accommodation (Homelessness Service),25/04/2023,30029913,"1,085.00 ",Anglia Motel
South Holland District Council,http://statistics.data.gov.uk/id/local-authority/32UF,AD Wellbeing and Community Leadership,Bed and Breakfast Accommodation (Homelessness Service),25/04/2023,30029914,"1,085.00 ",Anglia Motel
South Holland District Council,http://statistics.data.gov.uk/id/local-authority/32UF,AD Wellbeing and Community Leadership,Bed and Breakfast Accommodation (Homelessness Service),25/04/2023,30029915,"1,085.00 ",Anglia Motel
South Holland District Council,http://statistics.data.gov.uk/id/local-authority/32UF,AD Wellbeing and Community Leadership,Bed and Breakfast Accommodation (Homelessness Service),25/04/2023,30029920,"1,085.00 ",Anglia Motel
South Holland District Council,http://statistics.data.gov.uk/id/local-authority/32UF,AD Wellbeing and Community Leadership,Bed and Breakfast Accommodation (Homelessness Service),25/04/2023,30029921,"1,085.00 ",Anglia Motel
South Holland District Council,http://statistics.data.gov.uk/id/local-authority/32UF,AD Wellbeing and Community Leadership,Bed and Breakfast Accommodation (Homelessness Service),25/04/2023,30029923,"1,085.00 ",Anglia Motel
South Holland District Council,http://statistics.data.gov.uk/id/local-authority/32UF,AD Wellbeing and Community Leadership,Bed and Breakfast Accommodation (Homelessness Service),25/04/2023,30029924,"1,085.00 ",Anglia Motel
South Holland District Council,http://statistics.data.gov.uk/id/local-authority/32UF,AD Wellbeing and Community Leadership,Bed and Breakfast Accommodation (Homelessness Service),25/04/2023,30029925,"1,085.00 ",Anglia Motel
South Holland District Council,http://statistics.data.gov.uk/id/local-authority/32UF,AD Wellbeing and Community Leadership,Bed and Breakfast Accommodation (Homelessness Service),25/04/2023,30029926,"1,085.00 ",Anglia Motel
South Holland District Council,http://statistics.data.gov.uk/id/local-authority/32UF,AD Wellbeing and Community Leadership,Bed and Breakfast Accommodation (Homelessness Service),25/04/2023,30029938,"1,108.34 ",the Anchor Inn
South Holland District Council,http://statistics.data.gov.uk/id/local-authority/32UF,AD Wellbeing and Community Leadership,Bed and Breakfast Accommodation (Homelessness Service),25/04/2023,30029940,"1,108.34 ",the Anchor Inn
South Holland District Council,http://statistics.data.gov.uk/id/local-authority/32UF,AD Wellbeing and Community Leadership,Bed and Breakfast Accommodation (Homelessness Service),25/04/2023,30029941,"1,400.00 ",The Boat House
South Holland District Council,http://statistics.data.gov.uk/id/local-authority/32UF,AD Wellbeing and Community Leadership,Bed and Breakfast Accommodation (Homelessness Service),25/04/2023,30029943,"1,520.00 ",The Boat House
South Holland District Council,http://statistics.data.gov.uk/id/local-authority/32UF,AD Wellbeing and Community Leadership,Bed and Breakfast Accommodation (Homelessness Service),25/04/2023,30029944,"1,050.00 ",Riverside Hotel
South Holland District Council,http://statistics.data.gov.uk/id/local-authority/32UF,AD Wellbeing and Community Leadership,Bed and Breakfast Accommodation (Homelessness Service),25/04/2023,30029948,"1,050.00 ",The Mansion House Hotel
South Holland District Council,http://statistics.data.gov.uk/id/local-authority/32UF,AD Wellbeing and Community Leadership,Bed and Breakfast Accommodation (Homelessness Service),25/04/2023,30029950,991.66 ,The Mansion House Hotel
South Holland District Council,http://statistics.data.gov.uk/id/local-authority/32UF,AD Wellbeing and Community Leadership,Grants and Contributions to Outside Bodies - No Service Received,25/04/2023,30029945,"1,340.00 ",Property Panda Lettings Ltd
South Holland District Council,http://statistics.data.gov.uk/id/local-authority/32UF,AD Wellbeing and Community Leadership,Grants and Contributions to Outside Bodies - No Service Received,25/04/2023,30030024,"1,600.00 ",Martin Greaves Building Contractor
South Holland District Council,http://statistics.data.gov.uk/id/local-authority/32UF,AD Wellbeing and Community Leadership,Grants and Contributions to Outside Bodies - No Service Received,25/04/2023,30030030,"19,345.12 ",Martin Greaves Building Contractor
South Holland District Council,http://statistics.data.gov.uk/id/local-authority/32UF,Asset & Property,Agency Staff,25/04/2023,30028045,"1,267.62 ",Integrity Plus Ltd
South Holland District Council,http://statistics.data.gov.uk/id/local-authority/32UF,Asset & Property,Agency Staff,25/04/2023,30028060,"1,267.62 ",Integrity Plus Ltd
South Holland District Council,http://statistics.data.gov.uk/id/local-authority/32UF,Asset & Property,Agency Staff,25/04/2023,30029369,"1,267.62 ",Integrity Plus Ltd
South Holland District Council,http://statistics.data.gov.uk/id/local-authority/32UF,Asset & Property,Agency Staff,25/04/2023,30029758,710.90 ,Integrity Plus Ltd
South Holland District Council,http://statistics.data.gov.uk/id/local-authority/32UF,Asset & Property,Agency Staff,25/04/2023,30029851,736.03 ,Integrity Plus Ltd
South Holland District Council,http://statistics.data.gov.uk/id/local-authority/32UF,Asset & Property,Agency Staff,25/04/2023,30029854,"2,548.70 ",Integrity Plus Ltd
South Holland District Council,http://statistics.data.gov.uk/id/local-authority/32UF,Asset & Property,Buildings Maintenance - Programmed,25/04/2023,30029466,611.20 ,Lakeside Water & Building Services Ltd
South Holland District Council,http://statistics.data.gov.uk/id/local-authority/32UF,Asset & Property,Buildings Maintenance - Responsive,25/04/2023,30029870,483.60 ,Stuart Taplin Plumbing and Build Maint
South Holland District Council,http://statistics.data.gov.uk/id/local-authority/32UF,Asset & Property,Professional and Contractors Fees,25/04/2023,30029227,"1,063.04 ",Kings Armoured Security Services Ltd
South Holland District Council,http://statistics.data.gov.uk/id/local-authority/32UF,Asset & Property,Professional Fees,25/04/2023,30029951,"1,709.85 ",Oglesby and Limb Ltd
South Holland District Council,http://statistics.data.gov.uk/id/local-authority/32UF,Asset & Property,Works to Buildings (Main Contractor),25/04/2023,30030034,"11,550.00 ",e.on Energy Solutions Ltd (Highway Lighting)
South Holland District Council,http://statistics.data.gov.uk/id/local-authority/32UF,Asset & Property,Works to Buildings (Main Contractor),25/04/2023,30030035,"3,150.00 ",e.on Energy Solutions Ltd (Highway Lighting)
South Holland District Council,http://statistics.data.gov.uk/id/local-authority/32UF,Building Control,Professional and Contractors Fees,25/04/2023,30029893,420.00 ,Shields Wilson Ltd
South Holland District Council,http://statistics.data.gov.uk/id/local-authority/32UF,Building Control,Staff Recruitment,25/04/2023,30029927,598.50 ,Redactive Publishing Ltd
South Holland District Council,http://statistics.data.gov.uk/id/local-authority/32UF,Capital - Strategic Finance & Compliance,Professional Fees,25/04/2023,30029951,"1,709.85 ",Oglesby and Limb Ltd
South Holland District Council,http://statistics.data.gov.uk/id/local-authority/32UF,Capital - Strategic Finance & Compliance,Works to Buildings (Main Contractor),25/04/2023,30030034,"11,550.00 ",e.on Energy Solutions Ltd (Highway Lighting)
South Holland District Council,http://statistics.data.gov.uk/id/local-authority/32UF,Capital - Strategic Finance & Compliance,Works to Buildings (Main Contractor),25/04/2023,30030035,"3,150.00 ",e.on Energy Solutions Ltd (Highway Lighting)
South Holland District Council,http://statistics.data.gov.uk/id/local-authority/32UF,Democratic Services - Legal,Legal Fees,25/04/2023,30029653,"1,409.42 ",Lincolnshire County Council
South Holland District Council,http://statistics.data.gov.uk/id/local-authority/32UF,Democratic Services - Legal,Legal Fees,25/04/2023,30029654,"3,360.83 ",Lincolnshire County Council
South Holland District Council,http://statistics.data.gov.uk/id/local-authority/32UF,Economic Development,Professional and Contractors Fees,25/04/2023,30029404,"2,880.00 ",AMION Consulting Limited t/a AMION Consulting
South Holland District Council,http://statistics.data.gov.uk/id/local-authority/32UF,Economic Development,Professional and Contractors Fees,25/04/2023,30029856,904.47 ,Integrity Plus Ltd
South Holland District Council,http://statistics.data.gov.uk/id/local-authority/32UF,Environmental Services,Agency Staff,25/04/2023,30029716,923.51 ,GI Group (previously Encore)
South Holland District Council,http://statistics.data.gov.uk/id/local-authority/32UF,Environmental Services,Agency Staff,25/04/2023,30029853,"6,387.19 ",Integrity Plus Ltd
South Holland District Council,http://statistics.data.gov.uk/id/local-authority/32UF,Environmental Services,Agency Staff,25/04/2023,30030009,"1,695.04 ",The Best Connection Group Ltd
South Holland District Council,http://statistics.data.gov.uk/id/local-authority/32UF,Environmental Services,Agency Staff,25/04/2023,30030028,956.97 ,GI Group (previously Encore)
South Holland District Council,http://statistics.data.gov.uk/id/local-authority/32UF,Environmental Services,Agency Staff,25/04/2023,30030029,"1,062.97 ",GI Group (previously Encore)
South Holland District Council,http://statistics.data.gov.uk/id/local-authority/32UF,Environmental Services,Agency Staff,25/04/2023,30030052,"1,242.08 ",Quality Service Recruitment Ltd
South Holland District Council,http://statistics.data.gov.uk/id/local-authority/32UF,Environmental Services,Agency Staff,25/04/2023,30030053,"1,174.88 ",Quality Service Recruitment Ltd
South Holland District Council,http://statistics.data.gov.uk/id/local-authority/32UF,Environmental Services,Furniture and Equipment,25/04/2023,30029603,"1,921.69 ",Veolia Es UK Ltd
South Holland District Council,http://statistics.data.gov.uk/id/local-authority/32UF,Environmental Services,Professional and Contractors Fees,25/04/2023,30029227,"1,063.04 ",Kings Armoured Security Services Ltd
South Holland District Council,http://statistics.data.gov.uk/id/local-authority/32UF,Environmental Services,Workshop Parts,25/04/2023,30029249,"1,270.44 ",Fleet Factors Ltd
South Holland District Council,http://statistics.data.gov.uk/id/local-authority/32UF,Finance,Purchase of Hardware,25/04/2023,30029321,"1,188.12 ",Matrix Network Services Ltd
South Holland District Council,http://statistics.data.gov.uk/id/local-authority/32UF,Finance,Purchase of Hardware,25/04/2023,30029326,"14,453.87 ",Softcat Plc
South Holland District Council,http://statistics.data.gov.uk/id/local-authority/32UF,Head of Revenues and Benefits,Subscriptions to Organisations and Other Bodies,25/04/2023,30029437,"1,700.00 ",Tameside Metropolitan Borough
South Holland District Council,http://statistics.data.gov.uk/id/local-authority/32UF,Housing,Bed and Breakfast Accommodation (Homelessness Service),25/04/2023,30029427,542.50 ,Anglia Motel
South Holland District Council,http://statistics.data.gov.uk/id/local-authority/32UF,Leisure & Culture Communities,Computer Hardware Maintenance,25/04/2023,30029523,"1,419.21 ",Spektrix Ltd
South Holland District Council,http://statistics.data.gov.uk/id/local-authority/32UF,Leisure & Culture Communities,Other Miscellaneous Expenses,25/04/2023,30029936,800.00 ,Lincolnshire Outdoor Learning
South Holland District Council,http://statistics.data.gov.uk/id/local-authority/32UF,Planning,Agency - Vacant Post Cover,25/04/2023,30029259,"11,134.00 ",GHM Planning Ltd
South Holland District Council,http://statistics.data.gov.uk/id/local-authority/32UF,Public Protection,Course Fees,25/04/2023,30029322,688.00 ,Ricardo Energy and Environment
South Holland District Council,http://statistics.data.gov.uk/id/local-authority/32UF,Public Protection,Professional and Contractors Fees,25/04/2023,30029322,688.00 ,Ricardo Energy and Environment
South Holland District Council,http://statistics.data.gov.uk/id/local-authority/32UF,AD Housing,Grants and Contributions to Outside Bodies - No Service Received,27/04/2023,30029949,"5,259.00 ",Dolphin Mobility East Midlands Ltd
South Holland District Council,http://statistics.data.gov.uk/id/local-authority/32UF,AD Housing HRA,Cleaning Contract,27/04/2023,30029315,420.00 ,aAFD services Ltd
South Holland District Council,http://statistics.data.gov.uk/id/local-authority/32UF,AD Housing HRA,Drain Repairs,27/04/2023,30029439,"9,990.00 ",Dalrod Drainage Solutions
South Holland District Council,http://statistics.data.gov.uk/id/local-authority/32UF,AD Housing HRA,Drain Repairs,27/04/2023,30029440,"1,485.00 ",Dalrod Drainage Solutions
South Holland District Council,http://statistics.data.gov.uk/id/local-authority/32UF,AD Housing HRA,Drain Repairs,27/04/2023,30029441,"1,375.00 ",Dalrod Drainage Solutions
South Holland District Council,http://statistics.data.gov.uk/id/local-authority/32UF,AD Housing HRA,Electricity,27/04/2023,30030078,"7,538.33 ",Total Energies
South Holland District Council,http://statistics.data.gov.uk/id/local-authority/32UF,AD Housing HRA,Gas Servicing,27/04/2023,30029336,"24,850.10 ",Aaron Services Ltd
South Holland District Council,http://statistics.data.gov.uk/id/local-authority/32UF,AD Housing HRA,Professional and Contractors Fees,27/04/2023,30030021,"5,022.17 ",Lincolnshire County Council
South Holland District Council,http://statistics.data.gov.uk/id/local-authority/32UF,AD Housing HRA,Solid Fuel Servicing,27/04/2023,30029335,"2,022.72 ",Aaron Services Ltd
South Holland District Council,http://statistics.data.gov.uk/id/local-authority/32UF,AD Housing HRA,Subscriptions to Organisations and Other Bodies,27/04/2023,30030105,"9,396.00 ",Building Cost Information Service Ltd
South Holland District Council,http://statistics.data.gov.uk/id/local-authority/32UF,AD Neighbourhoods,Purchase of Vehicles,27/04/2023,30029357,"169,175.00 ",Dennis Eagle
South Holland District Council,http://statistics.data.gov.uk/id/local-authority/32UF,AD Neighbourhoods,Purchase of Vehicles,27/04/2023,30029858,"169,175.00 ",Dennis Eagle
South Holland District Council,http://statistics.data.gov.uk/id/local-authority/32UF,AD Neighbourhoods,Purchase of Vehicles,27/04/2023,30029859,"169,175.00 ",Dennis Eagle
South Holland District Council,http://statistics.data.gov.uk/id/local-authority/32UF,AD Regulatory,Staff Recruitment,27/04/2023,30030144,432.00 ,Atom Media Partners Ltd
South Holland District Council,http://statistics.data.gov.uk/id/local-authority/32UF,AD Regulatory,Staff Recruitment,27/04/2023,30030146,600.00 ,JGP Resourcing
South Holland District Council,http://statistics.data.gov.uk/id/local-authority/32UF,AD Strategic Growth and Development,Grants and Contributions to Outside Bodies - No Service Received,27/04/2023,30029791,"5,000.00 ",National Events Ltd
South Holland District Council,http://statistics.data.gov.uk/id/local-authority/32UF,AD Strategic Growth and Development - HRA,Agency Staff,27/04/2023,30030147,"2,750.00 ",Park Avenue Recruitment Ltd
South Holland District Council,http://statistics.data.gov.uk/id/local-authority/32UF,AD Wellbeing and Community Leadership,Bed and Breakfast Accommodation (Homelessness Service),27/04/2023,30030127,"13,817.86 ",G and A Hotels T A Woodlands Hotel
South Holland District Council,http://statistics.data.gov.uk/id/local-authority/32UF,AD Wellbeing and Community Leadership,Bed and Breakfast Accommodation (Homelessness Service),27/04/2023,30030177,"1,470.00 ",The Boat House
South Holland District Council,http://statistics.data.gov.uk/id/local-authority/32UF,AD Wellbeing and Community Leadership,Bed and Breakfast Accommodation (Homelessness Service),27/04/2023,30030181,"1,283.34 ",The Mansion House Hotel
South Holland District Council,http://statistics.data.gov.uk/id/local-authority/32UF,AD Wellbeing and Community Leadership,Bed and Breakfast Accommodation (Homelessness Service),27/04/2023,30030182,"1,050.00 ",The Mansion House Hotel
South Holland District Council,http://statistics.data.gov.uk/id/local-authority/32UF,AD Wellbeing and Community Leadership,Bed and Breakfast Accommodation (Homelessness Service),27/04/2023,30030188,991.66 ,The Mansion House Hotel
South Holland District Council,http://statistics.data.gov.uk/id/local-authority/32UF,AD Wellbeing and Community Leadership,Grants and Contributions to Outside Bodies - No Service Received,27/04/2023,30029949,"10,518.00 ",Dolphin Mobility East Midlands Ltd
South Holland District Council,http://statistics.data.gov.uk/id/local-authority/32UF,Asset & Property,Buildings Maintenance - Programmed,27/04/2023,30029461,611.20 ,Lakeside Water & Building Services Ltd
South Holland District Council,http://statistics.data.gov.uk/id/local-authority/32UF,Asset & Property,Buildings Maintenance - Programmed,27/04/2023,30029462,611.20 ,Lakeside Water & Building Services Ltd
South Holland District Council,http://statistics.data.gov.uk/id/local-authority/32UF,Asset & Property,Buildings Maintenance - Programmed,27/04/2023,30029463,611.20 ,Lakeside Water & Building Services Ltd
South Holland District Council,http://statistics.data.gov.uk/id/local-authority/32UF,Asset & Property,Buildings Maintenance - Programmed,27/04/2023,30029465,611.20 ,Lakeside Water & Building Services Ltd
South Holland District Council,http://statistics.data.gov.uk/id/local-authority/32UF,Asset & Property,Buildings Maintenance - Responsive,27/04/2023,30030077,800.00 ,SM Painting & Decorating Ltd
South Holland District Council,http://statistics.data.gov.uk/id/local-authority/32UF,Asset & Property,Electricity,27/04/2023,30030094,"2,421.55 ",e.on Next
South Holland District Council,http://statistics.data.gov.uk/id/local-authority/32UF,Asset & Property,Electricity,27/04/2023,30030095,"21,033.37 ",Total Energies
South Holland District Council,http://statistics.data.gov.uk/id/local-authority/32UF,Asset & Property,Gas,27/04/2023,30030015,"3,217.37 ",Espo Gas and Electricity
South Holland District Council,http://statistics.data.gov.uk/id/local-authority/32UF,Asset & Property,Legal Fees,27/04/2023,30030141,667.00 ,Freeths LLP
South Holland District Council,http://statistics.data.gov.uk/id/local-authority/32UF,Asset & Property,Maintenance of Footpaths and Roadways,27/04/2023,30029879,468.13 ,Andrew & Co. (Spalding) Ltd
South Holland District Council,http://statistics.data.gov.uk/id/local-authority/32UF,Asset & Property,Staff Training Expenses (Non-Payroll),27/04/2023,30030074,"2,400.00 ",University College of Estate Management
South Holland District Council,http://statistics.data.gov.uk/id/local-authority/32UF,Asset & Property,Water and Sewerage Charges,27/04/2023,30030093,"1,005.32 ",Wave
South Holland District Council,http://statistics.data.gov.uk/id/local-authority/32UF,Asset & Property,Works to Buildings (Main Contractor),27/04/2023,30029442,650.00 ,e.on Energy Solutions Ltd (Highway Lighting)
South Holland District Council,http://statistics.data.gov.uk/id/local-authority/32UF,Asset & Property,Works to Buildings (Main Contractor),27/04/2023,30029443,"4,000.00 ",e.on Energy Solutions Ltd (Highway Lighting)
South Holland District Council,http://statistics.data.gov.uk/id/local-authority/32UF,Building Control,Staff Recruitment,27/04/2023,30030144,432.00 ,Atom Media Partners Ltd
South Holland District Council,http://statistics.data.gov.uk/id/local-authority/32UF,Building Control,Staff Recruitment,27/04/2023,30030146,600.00 ,JGP Resourcing
South Holland District Council,http://statistics.data.gov.uk/id/local-authority/32UF,Capital - Strategic Finance & Compliance,Works to Buildings (Main Contractor),27/04/2023,30029442,650.00 ,e.on Energy Solutions Ltd (Highway Lighting)
South Holland District Council,http://statistics.data.gov.uk/id/local-authority/32UF,Capital - Strategic Finance & Compliance,Works to Buildings (Main Contractor),27/04/2023,30029443,"4,000.00 ",e.on Energy Solutions Ltd (Highway Lighting)
South Holland District Council,http://statistics.data.gov.uk/id/local-authority/32UF,Environmental Services,Agency Staff,27/04/2023,30029718,"1,116.18 ",Questech Recruitment Limited
South Holland District Council,http://statistics.data.gov.uk/id/local-authority/32UF,Leisure & Culture Communities,Electricity,27/04/2023,30030075,"4,025.41 ",Total Energies
South Holland District Council,http://statistics.data.gov.uk/id/local-authority/32UF,Leisure & Culture Communities,Electricity,27/04/2023,30030091,"5,194.62 ",Total Energies
South Holland District Council,http://statistics.data.gov.uk/id/local-authority/32UF,Leisure & Culture Communities,Gas,27/04/2023,30030002,"2,020.70 ",Espo Gas and Electricity
South Holland District Council,http://statistics.data.gov.uk/id/local-authority/32UF,Leisure & Culture Communities,Performers and Entertainers Fees,27/04/2023,30030185,"2,909.38 ",The Anglia Comedy Co. LLP
South Holland District Council,http://statistics.data.gov.uk/id/local-authority/32UF,Leisure & Culture Communities,Water and Sewerage Charges,27/04/2023,30030100,548.65 ,Wave
South Holland District Council,http://statistics.data.gov.uk/id/local-authority/32UF,Public Protection,Furniture and Equipment,27/04/2023,30030168,"1,140.28 ",Vip-System Ltd
South Holland District Council,http://statistics.data.gov.uk/id/local-authority/32UF,Public Protection,Professional and Contractors Fees,27/04/2023,30029379,"1,392.68 ",The Oyster Partnership Ltd
